{"text_format":"1","workbook":"xlsx","n_sheets":1,"sheets":["Sheet1"],"not_rendered":{"charts":0,"images":0,"macros":1,"external_links":0,"defined_names":1,"comments":0,"pivot_tables":0},"unopened":[],"bounds":{"document_bytes":16777216,"sheet_cells":100000,"rows_first":2000,"rows_last":500,"rows_between":2000,"halvings":0,"cell_chars":16384,"cell_head_chars":4096},"cells_cut":0,"cells_raw":0,"read":"whole","date_system":"1900"}

{"sheet":"Sheet1","index":0,"n_rows":124,"n_cols":17,"rows_kept":124,"cut":false,"hidden":false,"merged":[[14,15,15,16],[5,8,11,12],[23,1,23,5],[31,1,31,5],[30,1,30,5],[5,13,6,14],[24,1,24,5],[29,1,29,5],[27,1,27,5],[28,1,28,5],[3,8,3,12],[3,0,11,7],[22,1,22,5],[21,1,21,5],[14,7,15,11],[14,12,15,14],[12,0,13,5],[10,13,11,14],[12,7,13,14],[18,1,18,5],[3,13,4,14],[32,4,32,5],[25,1,25,5],[33,1,33,5],[34,1,34,5],[35,1,35,5],[36,1,36,5],[37,1,37,5],[38,1,38,5],[40,1,40,5],[41,1,41,5],[42,1,42,5],[43,1,43,5],[45,1,45,5],[46,1,46,5],[47,1,47,5],[48,1,48,5],[49,1,49,5],[50,1,50,5],[51,1,51,5],[52,1,52,5],[53,1,53,5],[54,1,54,5],[55,1,55,5],[56,1,56,5],[57,1,57,5],[58,1,58,5],[60,1,60,5],[61,4,61,5],[62,1,62,5],[63,1,63,5],[64,4,64,5],[65,1,65,5],[71,4,71,5],[72,1,72,5],[73,1,73,5],[74,1,74,5],[66,1,66,5],[67,4,67,5],[68,1,68,5],[69,1,69,5],[70,1,70,5],[79,1,79,5],[80,1,80,5],[82,4,82,5],[83,1,83,5],[75,4,75,5],[76,1,76,5],[77,1,77,5],[78,1,78,5],[114,4,114,5],[118,4,118,7],[118,8,118,9],[118,10,118,12],[99,1,99,5],[100,1,100,5],[101,1,101,5],[106,4,106,5],[112,4,112,5],[89,1,89,5],[88,1,88,5],[84,1,84,5],[96,1,96,5],[113,4,113,5],[98,1,98,5],[95,1,95,5],[90,4,90,5],[91,1,91,5],[92,1,92,5],[93,1,93,5],[94,4,94,5],[85,1,85,5],[86,1,86,5],[87,1,87,5]]}
[]
[]
[]
["INSTRUCTIONS:  Use this form when a single information collection document involves multiple reporting and recordkeeping requirements.  The totals of the figures in cols. should be entered in item 13 of OMB-83-I:                  cols. (D) &/or (I) = 13a (respondent is only counted once); cols. F & I = 13b;         cols. H & K = 13c.                                                                                                                                                                                                                                                                                                       (F)Total/(D)Total = (E)Average     (H)Total/(F)Total = (G)Average     (K)Total/(I)Total = (J)Average\nNOTE:  The columns will calculate automatically.  If Col. E's response is something other than annually, i.e., 1/6 years, list as \"1/6\" & decimal will display.    \n",null,null,null,null,null,null,null,"TITLE OF INFORMATION COLLECTION DOCUMENT",null,null,null,null,"OMB NO."]
[]
[null,null,null,null,null,null,null,null,"Federal and Non-Federal Financial Assistance Instruments",null,null,null,null,"0596-0217"]
[]
[]
[null,null,null,null,null,null,null,null,null,null,null,null,null,"DATE PREPARED"]
[]
[]
[]
["IDENTIFICATION OF REPORTING OR RECORDKEEPING REQUIREMENT",null,null,null,null,null,null,"ANNUAL BURDEN"]
[]
[null,null,null,null,null,null,null,"REPORTS",null,null,null,null,"RECORDS",null,null,"RESPONDENT COST"]
[]
[null,null,null,null,null,null,null,null,null,null,null,null,null,null,"TOTAL"]
[null,null,null,null,null,null,"FORMS NO (S)","NO. OF","NO OF","TOTAL ANNUAL","HOURS","TOTAL ","NO. OF ","ANNUAL ","RECORD-","COST","TOTAL"]
["SECTION OF","DESCRIPTION",null,null,null,null,"(If \"none\"","RESPONDENTS","RESPONSES","RESPONSES","PER  ","HOURS","RECORD-","HOURS PER","KEEPING HOURS","PER","COST"]
["REGS.",null,null,null,null,null,"so state)",null,"PER ","(Col. D x E)","RESPONSE","(Col. F x G)","KEEPERS","RECORD-","(Col. I x J)","HOUR","(Col. H x L)"]
[null,null,null,null,null,null,null,null,"RESPONDENT",null,null,null,null,"KEEPER"]
["(A)","(B)",null,null,null,null,"(C)","(D)","(E)","(F)","(G)","(H)","(I)","(J)","(K)","(L)","(M)"]
[null,"Modification Form ",null,null,null,null,"FS-1500-19",7893,1,{"$f":"H23*I23","v":7893},0.3,{"$f":"J23*K23","v":2367.9},null,null,{"$f":"SUM(M23*N23)","v":0},0,{"$f":"SUM(L23*P23)","v":0}]
[null,"Cooperator Performance Report (Optional Template)",null,null,null,null,"FS-1500-23",4293,2,{"$f":"H24*I24","v":8586},2,{"$f":"J24*K24","v":17172},null,null,0,0,{"$f":"SUM(L24*P24)","v":0}]
["NEW","Grant or Agreement Award Face Sheet",null,null,null,null,"FS-1500-100",{"$f":"(H76+H91+H107+H113)","v":1016},1,{"$f":"H25*I25","v":1016},3,{"$f":"J25*K25","v":3048},{"$f":"L25*0.41","v":1249.6799999999998}]
[null,"By using a single form FS-1500-100 the agency hopes to eliminate duplicate collection when G&A Specialists must change forms when the wrong instrument type is completed by a partner/FS Program Manager.  The Agency has sucessfully tested the new 1500-100 form and the goal in the upcoming years will to use the FS-1500-100 as the single form for all our Grants and Agreements."]
[null,null,null,null,null,"Total",null,{"$f":"SUM(H23:H25)","v":13202},null,{"$f":"SUM(J23:J25)","v":17495},null,{"$f":"SUM(L23:L25)","v":22587.9},null,null,0,null,0]
[null,"FEDERAL FINANCIAL ASSISTANCE TEMPLATES",null,null,null,null,null,null,null,null,null,null,null,null,0,null,0]
[null,"Cooperative Agreement",null,null,null,null,"Award Letter",175,null,{"$f":"H29*I29","v":0},null,{"$f":"J29*K29","v":0},{"$f":"40.53*1016","v":41178.480000000003},null,0,null,0]
[null,"Domestic Grant",null,null,null,null,"Award Letter",761,null,0,null,0,null,null,0,null,0]
[null,"International Cooperative Agreement ",null,null,null,null,"Award Letter",12,null,0,null,0,null,null,{"$f":"SUM(O23:O30)","v":0},null,{"$f":"SUM(Q23:Q30)","v":0}]
[null,"International Grant ",null,null,null,null,"Award Letter",16,null,0,null,0,null,null,{"$f":"SUM(O23:O30)","v":0},null,{"$f":"SUM(Q23:Q30)","v":0}]
[null,null,null,null,"SUB TOTAL:",null,null,{"$f":"SUM(H29:H32)","v":964},null,{"$f":"SUM(J29:J32)","v":0},null,0]
[null,"NEW FORMS AND COLLECTIONS"]
["NEW","Certification Regarding Lobbying (Required for all awards over $100K)","Certification Regarding Lobbying",null,null,null,"FS-1500-35",{"$f":"H33*0.33","v":318.12},1,{"$f":"H35*I35","v":318.12},0.15,{"$f":"J35*K35","v":47.717999999999996}]
["NEW","Financial Capability Questionnaire",null,null,null,null,"FS-1500-22",200,1,200,1,{"$f":"J36*K36","v":200}]
["NEW","Financial Capability Checklist",null,null,null,null,"FS-1500-22A",550,1,550,0.5,{"$f":"J37*K37","v":275}]
["NEW","Financial Capability Checklist (States ONLY)",null,null,null,null,"FS-1500-22B",50,1,50,0.5,{"$f":"J38*K38","v":25}]
["NEW","Equipment Justification and Certification Statement",null,null,null,null,"FS-1500-34",25,1,25,0.42,{"$f":"J39*K39","v":10.5},{"$f":"SUM(L35:L39)","v":558.21799999999996}]
[]
[null,"STANDARD FORM: Common"]
["4040-0002","Application for Federal Assistance (Mandatory)",null,null,null,null,"SF-424",820,1,{"$f":"H42*I42","v":820},1,{"$f":"J42*K42","v":820}]
["4040-0005","Application for Federal Assistance (Individual)",null,null,null,null,"SF-424",10,1,{"$f":"H43*I43","v":10},3,{"$f":"J43*K43","v":30}]
["4040-0001","Application for Federal Assistance – Research",null,null,null,null,"SF-424 RR",{"$f":"H33-H43-H42","v":134},1,{"$f":"H44*I44","v":134},58,{"$f":"J44*K44","v":7772}]
[null,null,null,null,null,"TOTAL",null,{"$f":"SUM(H42:H44)","v":964},null,{"$f":"SUM(J42:J44)","v":964},null,{"$f":"SUM(L42:L44)","v":8622}]
[null,"STANDARD FORM: Burden accounted for under another information collection number"]
["4040-0013","Disclosure of Lobbying Activities",null,null,null,null,"SF-LLL &         SF-LLLa",150,1,{"$f":"H47*I47","v":150},{"$f":"10/60","v":0.16666666666666666},{"$f":"J47*K47","v":25}]
[" 4040-0012","Request for Advance or Reimbursement",null,null,null,null,"SF-270",{"$f":"(H33-25)","v":939},2.5,{"$f":"H48*I48","v":2347.5},1,2347.5,"is 4040-0012.  Grants.gov is carrying the burden for using this form."]
["4040-0011","Outlay Report and Request for Reimbursement for Construction Programs",null,null,null,null,"SF-271",25,2.5,{"$f":"H49*I49","v":62.5},1,62.5]
["4040-0006","Budget Information – Non-Construction Programs",null,null,null,null,"SF-424A",{"$f":"H33-H52","v":939},1,{"$f":"H50*I50","v":939},{"$f":"180/60","v":3},2817]
["4040-0007","Assurances – Non-Construction Programs",null,null,null,null,"SF-424B",{"$f":"H50","v":939},1,939,{"$f":"15/60","v":0.25},234.75,"SF-424B is approved under 4040-0007 – Grants.gov carries the burden"]
["4040-0008","Budget Information - Construction Programs",null,null,null,null,"SF-424C",25,1,25,{"$f":"180/60","v":3},75]
["4040-0009","Assurances – Construction Program",null,null,null,null,"SF-424D",{"$f":"H52","v":25},1,25,{"$f":"15/60","v":0.25},6.25]
["4040-0014","Federal Financial Report",null,null,null,null,"SF-425",2750,2,{"$f":"H54*I54","v":5500},1.5,8250,"SF-425 and 425A – approved under 4040-0014 – Grants. Gov carries the burden."]
["3090-0289","Tangible Personal Property",null,null,null,null,"SF-428"]
[null,"Annual Report",null,null,null,null,"SF-428-A"]
[null,"Final Report Form and Instructions",null,null,null,null,"SF-428-B"]
[null,"Disposition Request/Report",null,null,null,null,"SF-428-C"]
[null,"Supplemental Form and Instructions",null,null,null,null,"SF-428-S"]
["3090-0296","Real Property Status Repot"]
["9000-0045","Payment Bond",null,null,null,null,"SF-25A",5,1,{"$f":"H61*I61","v":5},{"$f":"25/60","v":0.41666666666666669},{"$f":"J61*K61","v":2.0833333333333335}]
[null,null,null,null,"TOTAL:",null,null,{"$f":"SUM(H35:H61)+H33","v":9832.119999999999},{"$f":"SUM(I35:I61)+I33","v":21},{"$f":"SUM(J35:J61)+J33","v":13064.119999999999},{"$f":"SUM(K35:K61)+K33","v":75.153333333333336},{"$f":"SUM(L47:L61)","v":13820.083333333334},"*"]
[null,"NONFEDERAL FINANCIAL ASSISTANCE TEMPLATES"]
[null,"COOPERATIVE FIRE AGREEMENTS",null,null,null,null,"FS-1500-7 "]
[null,null,null,null,"SUB TOTAL:",null,null,225,1,{"$f":"H65*I65","v":225},3,{"$f":"J65*K65","v":675}]
[null,"LAW ENFORCEMENT AGREEMENTS",null,null,null,null,"FS-1500-8"]
[null,"Cooperative Law Enforcement Annual Operating Plan and Financial Plan",null,null,null,null,"FS-1500-8A"]
[null,null,null,null,"SUB TOTAL:",null,null,174,1,{"$f":"H68*I68","v":174},3,{"$f":"J68*K68","v":522}]
[null,"ROADS AGREEMENTS"]
[null,"Cooperative Forest Road Agreement ",null,null,null,null,"FS-1500-9"]
[null,"Road Project Agreement",null,null,null,null,"FS-1500-9A"]
[null,null,null,null,"SUB TOTAL:",null,null,205,1,205,4,{"$f":"J72*K72","v":820}]
[null,"CHALLENGE COST SHARE AGREEMENTS"]
[null,"Challenge Cost-Share Agreement "]
[null,"Replaces FS-1500-10 through 10C",null,null,null,null,"Replaced"]
[null,null,null,null,"SUB TOTAL:",null,null,{"$f":"714*0.5","v":357},1,357,4,{"$f":"J76*K76","v":1428}]
[null,"COLLECTION AGREEMENTS"]
[null,"Collection Agreement ",null,null,null,null,"FS-1500-11"]
[null,"Reimbursable Collection Agreement, Rocky Mountain Elk Foundation",null,null,null,null,"FS-1500-11A "]
[null,"Advance Collection Agreement, Rocky Mountain Elk Foundation",null,null,null,null,"FS-1500-11B "]
[null,"Collection Agreement- FERC ",null,null,null,null,"FS-1500-11C"]
[null,null,"Collection Agreement Financial Plan (Optional)",null,null,null,"FS-1500-18"]
[null,null,null,null,"SUB TOTAL:",null,null,975,1,975,4,{"$f":"J83*K83","v":3900}]
[null,"RESEARCH AND DEVELOPMENT (R&D) AGREEMENTS"]
[null,"Cost-Reimbursable Agreement ",null,null,null,null,"Replaced"]
[null,"Cooperative Research and Development Agreements "]
[null,"Replaces FS-1500-13 through  13B",null,null,null,null,"Replaced"]
[null,"Nondisclosure Agreement"]
[null,"Joint Venture Agreement "]
[null,"Replaces FS-1500-14 through 14A",null,null,null,null,"Replaced"]
[null,null,null,null,"SUB TOTAL:",null,null,{"$f":"316*0.5","v":158},1,158,4,{"$f":"J91*K91","v":632}]
[null,"MEMORANDUM OF UNDERSTANDING"]
[null,"Memorandum of Understanding ",null,null,null,null,"FS-1500-15"]
[null,"Memorandum of Understanding for Cooperative Frequency Usage",null,null,null,null,"FS-1500-15A"]
[null,null,null,null,"SUB TOTAL:",null,null,299,1,299,3,{"$f":"J95*K95","v":897}]
[null,"PARTICIPATING AGREEMENTS"]
[null,"Replaces FS-1500-16 through 1500-16G",null,null,null,null,"Replaced"]
[null,null,"Master Stewardship Agreement",null,null,null,"FS 1500-21"]
[null,"Stewardship Agreement Supplemental Project Agreement ",null,null,null,null,"FS-1500-21A"]
[null,"Stewardship Agreement Financial Plan",null,null,null,null,"FS-1500-21B"]
[null,"Stewardship Agreement ",null,null,null,null,"FS-1500-21C"]
[null,"Stewardship Agreement (Short Form)",null,null,null,null,"FS-1500-21D"]
[null,null,"Agreements Financial Plan (Long) Optional",null,null,null,"FS-1500-17A"]
[null,null,"Agreements Financial Plan (Short) Optional",null,null,null,"FS-1500-17B"]
[null,null,"Agreements Financial Plan (Medium Form) Optional",null,null,null,"FS-1500-17C"]
[null,null,"Collection Agreement Financial Plan Optional",null,null,null,"FS-1500-18"]
[null,null,null,null,"SUB TOTAL:",null,null,{"$f":"962*0.5","v":481},1,{"$f":"H107*I107","v":481},4,{"$f":"J107*K107","v":1924}]
["GOOD NEIGHBOR AGREEMENTS",null,null,null,null,null,"Replaced"]
[null,"Good Neighbor Agreement",null,null,null,null,"FS-1500-36"]
[null,"Master Good Neighbor Agreement",null,null,null,null,"FS-1500-36A"]
[null,"Supplemental Good Neighbor Agreement",null,null,null,null,"FS-1500-36B"]
[null,"Good Neighbor Agreement (Road Work and Other Activities)",null,null,null,null,"FS-1500-37"]
[null,null,null,null,"SUB TOTAL:",null,null,{"$f":"40*0.5","v":20},1,{"$f":"H113*I113","v":20},4.45,{"$f":"J113*K113","v":89}]
[]
[null,null,null,null,"TOTAL:",null,null,{"$f":"SUM(H65:H113)","v":2894},null,{"$f":"SUM(J65:J113)","v":2894},null,{"$f":"SUM(L65:L113)","v":10887}]
[]
[]
[]
[null,null,null,null,"Reports",null,null,null,"Recordkeeping",null,"Cost"]
[null,null,null,null,"%","No. Resp","AveResp","Burden","AveTime","Burden","AveCost*","Burden","Cost to Partner"]
["TOTAL: Estimated PRIVATE burden",null,null,null,{"$f":"1-E122-E123","v":0.58000000000000007},{"$f":"E121*F124","v":15038.309600000001},8.68,{"$f":"G121*F121","v":130532.527328},1,{"$f":"I121*F121","v":15038.309600000001},40.53,{"$f":"J121+H121","v":145570.836928},{"$f":"L121*K121","v":5899986.02069184}]
["TOTAL: Estimated GOVERNMENT Burden",null,null,null,0.41,{"$f":"E122*F124","v":10630.529199999999},8.68,{"$f":"G122*F122","v":92272.993455999982},1,{"$f":"I122*F122","v":10630.529199999999},40.53,{"$f":"J122+H122","v":102903.52265599999},{"$f":"L122*K122","v":4170679.7732476797}]
["TOTAL: Estimated INDIVIDUAL Burden",null,null,null,0.01,{"$f":"E123*F124","v":259.28120000000001},8.68,2250.5608160000002,1,{"$f":"I123*F123","v":259.28120000000001},40.53,2509.8420160000001,101723.89690848]
[null,null,null,null,{"$f":"E121+E122+E123","v":1},{"$f":"H115+H62+H27","v":25928.12},{"$f":"H124/F124","v":8.68},{"$f":"SUM(H121:H123)","v":225056.0816},null,{"$f":"SUM(J121:J123)","v":25928.12},null,{"$f":"SUM(L121:L123)","v":250984.2016},{"$f":"M121+M122+M123","v":10172389.690848}]